fUSD/lending_fUSD_20240420
["ID","MTS","AMOUNT","RATE_DAILY","PERIOD"]
[323018566,1713592245641,-500.0,0.00015342,2]
[323018567,1713592245650,-567.86,0.00015342,2]
[323018568,1713592245659,-500.0,0.00015342,2]
[323018569,1713592245668,-151.0,0.00015342,2]
[323018570,1713592245677,-500.0,0.00015342,2]
[323018571,1713592245687,-155.285875,0.00015342,2]
[323018572,1713592245696,-500.0,0.00015342,2]
[323018573,1713592245705,-500.0,0.00015342,2]
[323018574,1713592245714,-715.34,0.00015342,2]
[323018575,1713592245723,-1256.28,0.00015342,2]
[323018576,1713592245734,-500.0,0.00015342,2]
[323018577,1713592245743,-955.12,0.00015342,2]
[323018578,1713592245753,-643.75,0.00015342,2]
[323018579,1713592245762,-661.09,0.00015342,2]
[323018580,1713592245772,-500.0,0.00015342,2]
[323018581,1713592245781,-500.0,0.00015342,2]
[323018582,1713592245791,-151.0,0.00015342,2]
[323018583,1713592245800,-1677.53,0.00015342,2]
[323018584,1713592245810,-151.0,0.00015342,2]
[323018585,1713592245820,-151.0,0.00015342,2]
[323018586,1713592245830,-562.54,0.00015342,2]
[323018587,1713592245839,-547.74,0.00015342,2]
[323018588,1713592245849,-500.0,0.00015342,2]
[323018589,1713592245860,-530.92,0.00015342,2]
[323018590,1713592245869,-500.0,0.00015342,2]
[323018591,1713592245879,-500.0,0.00015342,2]
[323018592,1713592245890,-500.0,0.00015342,2]
[323018593,1713592245899,-853.28,0.00015342,2]
[323018594,1713592245909,-577.92,0.00015342,2]
[323018595,1713592245918,-823.88,0.00015342,2]
[323018596,1713592245931,-500.0,0.00015342,2]
[323018597,1713592245942,-872.87,0.00015342,2]
[323018598,1713592245952,-500.0,0.00015342,2]
[323018599,1713592245962,-500.0,0.00015342,2]
[323018600,1713592245972,-791.88,0.00015342,2]
[323018601,1713592245981,-151.0,0.00015342,2]
[323018602,1713592245991,-151.0,0.00015342,2]
[323018603,1713592246001,-168.167123,0.00015342,2]
[323018604,1713592246011,-151.0,0.00015342,2]
[323018605,1713592246021,-500.0,0.00015342,2]
[323018606,1713592246031,-663.96,0.00015342,2]
[323018607,1713592246041,-168.167123,0.00015342,2]
[323018608,1713592246052,-151.0,0.00015342,2]
[323018609,1713592246061,-500.0,0.00015342,2]
[323018610,1713592246072,-151.0,0.00015342,2]
[323018611,1713592246082,-686.26,0.00015342,2]
[323018612,1713592246091,-168.167123,0.00015342,2]
[323018613,1713592246102,-151.0,0.00015342,2]
[323018614,1713592246111,-500.0,0.00015342,2]
[323018615,1713592246121,-1133.41,0.00015342,2]
[323018616,1713592246130,-151.0,0.00015342,2]
[323018617,1713592246138,-151.0,0.00015342,2]
[323018618,1713592246147,-151.0,0.00015342,2]
[323018619,1713592246156,-168.167123,0.00015342,2]
[323018620,1713592246165,-151.0,0.00015342,2]
[323018621,1713592246174,-151.0,0.00015342,2]
[323018622,1713592246183,-500.0,0.00015342,2]
[323018623,1713592246194,-151.0,0.00015342,2]
[323018624,1713592246203,-151.0,0.00015342,2]
[323018625,1713592246214,-151.0,0.00015342,2]
[323018626,1713592246225,-500.0,0.00015342,2]
[323018627,1713592246235,-151.0,0.00015342,2]
[323018628,1713592246245,-168.167123,0.00015342,2]
[323018629,1713592246257,-263.700078,0.00015342,2]
[323018630,1713592246266,-793.59,0.00015342,2]
[323018631,1713592246275,-500.0,0.00015342,2]
[323018632,1713592246285,-500.0,0.00015342,2]
[323018634,1713592246294,-168.167123,0.00015342,2]
[323018636,1713592246304,-679.5,0.00015342,2]
[323018638,1713592246314,-151.0,0.00015342,2]
[323018640,1713592246323,-151.0,0.00015342,2]
[323018642,1713592246333,-151.0,0.00015342,2]
[323018644,1713592246342,-151.0,0.00015342,2]
[323018646,1713592246351,-500.0,0.00015342,2]
[323018648,1713592246361,-500.0,0.00015342,2]
[323018650,1713592246371,-500.0,0.00015342,2]
[323018652,1713592246381,-500.0,0.00015342,2]
[323018654,1713592246389,-151.0,0.00015342,2]
[323018656,1713592246399,-151.0,0.00015342,2]
[323018658,1713592246409,-500.0,0.00015342,2]
[323018660,1713592246423,-151.0,0.00015342,2]
[323018662,1713592246433,-151.0,0.00015342,2]
[323018664,1713592246443,-500.0,0.00015342,2]
[323018666,1713592246453,-507.62,0.00015342,2]
[323018668,1713592246463,-500.0,0.00015342,2]
[323018670,1713592246472,-729.94,0.00015342,2]
[323018671,1713592246481,-640.29,0.00015342,2]
[323018672,1713592246490,-500.0,0.00015342,2]
[323018673,1713592246499,-1368.13,0.00015342,2]
[323018675,1713592246509,-500.0,0.00015342,2]
[323018677,1713592246518,-553.67,0.00015342,2]
[323018679,1713592246528,-500.0,0.00015342,2]
[323018680,1713592246538,-500.0,0.00015342,2]
[323018681,1713592246548,-506.72,0.00015342,2]
[323018682,1713592246557,-500.0,0.00015342,2]
[323018683,1713592246566,-500.0,0.00015342,2]
[323018684,1713592246576,-500.0,0.00015342,2]
[323018685,1713592246586,-500.0,0.00015342,2]
[323018686,1713592246596,-916.34,0.00015342,2]
[323018687,1713592246605,-500.0,0.00015342,2]
[323018688,1713592246615,-500.0,0.00015342,2]
[323018689,1713592246624,-500.0,0.00015342,2]
[323018690,1713592246634,-500.0,0.00015342,2]
[323018691,1713592246643,-780.72,0.00015342,2]
[323018692,1713592246653,-500.0,0.00015342,2]
[323018693,1713592246662,-152.906211,0.00015342,2]
[323018694,1713592246672,-152.906211,0.00015342,2]
[323018695,1713592246682,-152.906211,0.00015342,2]
[323018696,1713592246691,-152.906211,0.00015342,2]
[323018697,1713592246701,-151.0,0.00015342,2]
[323018698,1713592246710,-596.75,0.00015342,2]
[323018699,1713592246720,-151.0,0.00015342,2]
[323018700,1713592246730,-545.98,0.00015342,2]
[323018701,1713592246739,-500.0,0.00015342,2]
[323018702,1713592246748,-151.0,0.00015342,2]
[323018703,1713592246757,-153.991304,0.00015342,2]
[323018704,1713592246767,-500.0,0.00015342,2]
[323018705,1713592246777,-152.906211,0.00015342,2]
[323018706,1713592246786,-152.906211,0.00015342,2]
[323018707,1713592246795,-152.906211,0.00015342,2]
[323018708,1713592246805,-152.906211,0.00015342,2]
[323018709,1713592246814,-726.37,0.00015342,2]
[323018710,1713592246823,-639.88,0.00015342,2]
[323018711,1713592246832,-151.0,0.00015342,2]
[323018712,1713592246842,-151.0,0.00015342,2]
[323018713,1713592246851,-511.34,0.00015342,2]
[323018714,1713592246934,-731.57,0.00015342,2]
[323018715,1713592246945,-500.0,0.00015342,2]
[323018716,1713592246955,-639.5,0.00015342,2]
[323018717,1713592246964,-541.5,0.00015342,2]
[323018718,1713592246974,-500.0,0.00015342,2]
[323018719,1713592246983,-500.0,0.00015342,2]
[323018720,1713592246992,-500.0,0.00015342,2]
[323018721,1713592247002,-271.46218567,0.00015342,2]
[323018722,1713592247011,-707.28,0.00015342,2]
[323018723,1713592247020,-500.0,0.00015342,2]
[323018724,1713592247029,-151.384471,0.00015342,2]
[323018725,1713592247038,-517.25,0.00015342,2]
[323018726,1713592247047,-500.0,0.00015342,2]
[323018727,1713592247056,-500.0,0.00015342,2]
[323018728,1713592247065,-500.0,0.00015342,2]
[323018729,1713592247075,-732.97,0.00015342,2]
[323018730,1713592247084,-500.0,0.00015342,2]
[323018731,1713592247094,-500.0,0.00015342,2]
[323018732,1713592247102,-967.5,0.00015342,2]
[323018733,1713592247113,-500.0,0.00015342,2]
[323018734,1713592247122,-500.0,0.00015342,2]
[323018735,1713592247131,-509.25,0.00015342,2]
[323018736,1713592247140,-1077.71,0.00015342,2]
[323018737,1713592247150,-500.0,0.00015342,2]
[323018738,1713592247160,-507.28,0.00015342,2]
[323018739,1713592247169,-727.84,0.00015342,2]
[323018740,1713592247178,-500.0,0.00015342,2]
[323018741,1713592247190,-466.25052286,0.00015342,2]
[323018742,1713592247199,-500.0,0.00015342,2]
[323018743,1713592247208,-500.0,0.00015342,2]
[323018744,1713592247217,-540.766131,0.00015342,2]
[323018745,1713592247227,-540.766131,0.00015342,2]
[323018746,1713592247237,-540.766131,0.00015342,2]
[323018747,1713592247247,-733.5,0.00015342,2]
[323018748,1713592247261,-540.766131,0.00015342,2]
[323018749,1713592247270,-941.43,0.00015342,2]
[323018750,1713592247279,-1603.88,0.00015342,2]
[323018751,1713592247288,-500.0,0.00015342,2]
[323018752,1713592247298,-1141.47,0.00015342,2]
[323018753,1713592247307,-500.0,0.00015342,2]
[323018754,1713592247317,-500.0,0.00015342,2]
[323018755,1713592247326,-540.766131,0.00015342,2]
[323018756,1713592247337,-500.0,0.00015342,2]
[323018757,1713592247347,-500.0,0.00015342,2]
[323018758,1713592247355,-540.766131,0.00015342,2]
[323018759,1713592247365,-500.0,0.00015342,2]
[323018760,1713592247374,-540.766131,0.00015342,2]
[323018761,1713592247383,-540.766131,0.00015342,2]
[323018762,1713592247393,-500.0,0.00015342,2]
[323018763,1713592247404,-500.0,0.00015342,2]
[323018764,1713592247414,-1097.42,0.00015342,2]
[323018765,1713592247423,-884.41,0.00015342,2]
[323018766,1713592247432,-500.0,0.00015342,2]
[323018767,1713592247441,-151.0,0.00015342,2]
[323018768,1713592247450,-151.0,0.00015342,2]
[323018769,1713592247459,-151.0,0.00015342,2]
[323018770,1713592247469,-151.0,0.00015342,2]
[323018771,1713592247478,-500.0,0.00015342,2]
[323018772,1713592247487,-1309.44,0.00015342,2]
[323018773,1713592247496,-500.0,0.00015342,2]
[323018774,1713592247505,-500.0,0.00015342,2]
[323018775,1713592247515,-500.0,0.00015342,2]
[323018776,1713592247524,-799.25,0.00015342,2]
[323018777,1713592247533,-656.65,0.00015342,2]
[323018778,1713592247543,-1516.92,0.00015342,2]
[323018779,1713592247553,-588.8556026,0.00015342,2]
[323018780,1713592247563,-500.0,0.00015342,2]
[323018781,1713592247572,-500.0,0.00015342,2]
[323018782,1713592247582,-1603.54,0.00015342,2]
[323018783,1713592247591,-670.85,0.00015342,2]
[323018784,1713592247600,-500.0,0.00015342,2]
[323018785,1713592247610,-500.0,0.00015342,2]
[323018786,1713592247619,-755.27,0.00015342,2]
[323018787,1713592247628,-861.77,0.00015342,2]
[323018788,1713592247637,-866.02,0.00015342,2]
[323018789,1713592247646,-151.0,0.00015342,2]
[323018790,1713592247656,-500.0,0.00015342,2]
[323018791,1713592247665,-151.0,0.00015342,2]
[323018792,1713592247674,-153.994026,0.00015342,2]
[323018793,1713592247683,-154.638087,0.00015342,2]
[323018794,1713592247691,-153.994026,0.00015342,2]
[323018795,1713592247701,-153.994026,0.00015342,2]
[323018796,1713592247712,-153.994026,0.00015342,2]
[323018797,1713592247722,-500.0,0.00015342,2]
[323018798,1713592247731,-282.396864,0.00015342,2]
[323018799,1713592247741,-1073.34,0.00015342,2]
[323018800,1713592247751,-282.396864,0.00015342,2]
[323018801,1713592247760,-282.396864,0.00015342,2]
[323018802,1713592247769,-282.396864,0.00015342,2]
[323018803,1713592247778,-153.994026,0.00015342,2]
[323018804,1713592247788,-151.0,0.00015342,2]
[323018805,1713592247798,-153.994026,0.00015342,2]
[323018806,1713592247808,-306.036012,0.00015342,2]
[323018807,1713592247819,-151.0,0.00015342,2]
[323018808,1713592247828,-622.24,0.00015342,2]
[323018809,1713592247837,-153.994026,0.00015342,2]
[323018810,1713592247847,-151.0,0.00015342,2]
[323018811,1713592247856,-306.036012,0.00015342,2]
[323018812,1713592247866,-151.0,0.00015342,2]
[323018813,1713592247875,-153.994026,0.00015342,2]
[323018814,1713592247884,-306.036012,0.00015342,2]
[323018815,1713592247894,-500.0,0.00015342,2]
[323018816,1713592247903,-306.036012,0.00015342,2]
[323018817,1713592247912,-500.0,0.00015342,2]
[323018818,1713592247921,-589.94,0.00015342,2]
[323018819,1713592247931,-987.1,0.00015342,2]
[323018820,1713592247940,-151.0,0.00015342,2]
[323018821,1713592247950,-282.396864,0.00015342,2]
[323018822,1713592247961,-151.0,0.00015342,2]
[323018823,1713592247970,-282.396864,0.00015342,2]
[323018824,1713592247979,-151.955513,0.00015342,2]
[323018825,1713592247988,-282.396864,0.00015342,2]
[323018826,1713592247998,-282.396864,0.00015342,2]
[323018827,1713592248007,-500.0,0.00015342,2]
[323018828,1713592248016,-500.0,0.00015342,2]
[323018829,1713592248025,-745.13,0.00015342,2]
[323018830,1713592248034,-1162.58,0.00015342,2]
[323018831,1713592248044,-678.72,0.00015342,2]
[323018832,1713592248053,-500.0,0.00015342,2]
[323018833,1713592248062,-500.0,0.00015342,2]
[323018834,1713592248072,-682.94,0.00015342,2]
[323018835,1713592248081,-1653.03,0.00015342,2]
[323018836,1713592248091,-633.64,0.00015342,2]
[323018837,1713592248101,-500.0,0.00015342,2]
[323018838,1713592248110,-500.0,0.00015342,2]
[323018839,1713592248119,-811.236803,0.00015342,2]
[323018840,1713592248128,-811.236803,0.00015342,2]
[323018841,1713592248138,-811.236803,0.00015342,2]
[323018842,1713592248147,-811.236803,0.00015342,2]
[323018843,1713592248156,-500.0,0.00015342,2]
[323018844,1713592248165,-1517.59,0.00015342,2]
[323018845,1713592248174,-947.11,0.00015342,2]
[323018846,1713592248184,-811.236803,0.00015342,2]
[323018847,1713592248192,-306.036012,0.00015342,2]
[323018848,1713592248201,-811.236803,0.00015342,2]
[323018849,1713592248211,-654.74,0.00015342,2]
[323018850,1713592248220,-500.0,0.00015342,2]
[323018851,1713592248229,-306.036012,0.00015342,2]
[323018852,1713592248238,-811.236803,0.00015342,2]
[323018853,1713592248248,-811.236803,0.00015342,2]
[323018854,1713592248262,-306.036012,0.00015342,2]
[323018855,1713592248271,-306.036012,0.00015342,2]
[323018856,1713592248281,-633.02,0.00015342,2]
[323018857,1713592248290,-927.95,0.00015342,2]
[323018858,1713592248301,-492.63,0.00015342,2]
[323018859,1713592248310,-1391.13,0.00015342,2]
[323018860,1713592248320,-500.0,0.00015342,2]
[323018861,1713592248329,-500.0,0.00015342,2]
[323018862,1713592248339,-500.0,0.00015342,2]
[323018863,1713592248349,-1331.98,0.00015342,2]
[323018864,1713592248361,-890.5,0.00015342,2]
[323018865,1713592248370,-1061.55,0.00015342,2]
[323018866,1713592248379,-538.35,0.00015342,2]
[323018867,1713592248389,-500.0,0.00015342,2]
[323018868,1713592248398,-551.45,0.00015342,2]
[323018869,1713592248407,-237.24158,0.00015342,2]
[323018870,1713592248416,-237.24158,0.00015342,2]
[323018871,1713592248425,-237.24158,0.00015342,2]
[323018872,1713592248435,-588.26,0.00015342,2]
[323018873,1713592248444,-237.24158,0.00015342,2]
[323018874,1713592248453,-1157.82,0.00015342,2]
[323018875,1713592248462,-178.314559,0.00015342,2]
[323018876,1713592248471,-178.314559,0.00015342,2]
[323018877,1713592248480,-500.0,0.00015342,2]
[323018878,1713592248489,-602.84,0.00015342,2]
[323018879,1713592248499,-178.314559,0.00015342,2]
[323018880,1713592248508,-178.314559,0.00015342,2]
[323018881,1713592248517,-237.24158,0.00015342,2]
[323018882,1713592248526,-237.24158,0.00015342,2]
[323018883,1713592248535,-151.0,0.00015342,2]
[323018884,1713592248544,-222.559406,0.00015342,2]
[323018885,1713592248554,-556.8,0.00015342,2]
[323018886,1713592248563,-237.24158,0.00015342,2]
[323018887,1713592248572,-151.0,0.00015342,2]
[323018888,1713592248581,-222.559406,0.00015342,2]
[323018889,1713592248590,-237.24158,0.00015342,2]
[323018890,1713592248599,-362.123824,0.00015342,2]
[323018891,1713592248608,-151.0,0.00015342,2]
[323018892,1713592248622,-222.559406,0.00015342,2]
[323018893,1713592248632,-362.123824,0.00015342,2]
[323018894,1713592248641,-165.93478,0.00015342,2]
[323018895,1713592248650,-222.559406,0.00015342,2]
[323018896,1713592248660,-362.123824,0.00015342,2]
[323018897,1713592248669,-362.123824,0.00015342,2]
[323018898,1713592248679,-178.314559,0.00015342,2]
[323018899,1713592248688,-178.314559,0.00015342,2]
[323018900,1713592248697,-500.0,0.00015342,2]
[323018901,1713592248706,-178.314559,0.00015342,2]
[323018902,1713592248715,-500.0,0.00015342,2]
[323018903,1713592248725,-178.314559,0.00015342,2]
[323018904,1713592248733,-222.559406,0.00015342,2]
[323018905,1713592248743,-528.25,0.00015342,2]
[323018906,1713592248753,-222.559406,0.00015342,2]
[323018907,1713592248763,-1507.68,0.00015342,2]
[323018908,1713592248773,-222.559406,0.00015342,2]
[323018909,1713592248783,-222.559406,0.00015342,2]
[323018910,1713592248793,-362.123824,0.00015342,2]
[323018911,1713592248803,-362.123824,0.00015342,2]
[323018912,1713592248812,-362.123824,0.00015342,2]
[323018913,1713592248822,-362.123824,0.00015342,2]
[323018914,1713592248831,-573.74,0.00015342,2]
[323018915,1713592248840,-500.0,0.00015342,2]
[323018916,1713592248850,-1322.87,0.00015342,2]
[323018917,1713592248865,-623.55,0.00015342,2]
[323018918,1713592248875,-500.0,0.00015342,2]
[323018919,1713592248884,-500.0,0.00015342,2]
[323018920,1713592248894,-613.14398352,0.00015342,2]
[323018921,1713592248903,-547.23,0.00015342,2]
[323018922,1713592248912,-779.25,0.00015342,2]
[323018923,1713592248921,-500.0,0.00015342,2]
[323018924,1713592248931,-500.0,0.00015342,2]
[323018925,1713592248941,-500.0,0.00015342,2]
[323018926,1713592248951,-151.0,0.00015342,2]
[323018927,1713592248960,-500.0,0.00015342,2]
[323018928,1713592248969,-151.0,0.00015342,2]
[323018929,1713592248978,-151.0,0.00015342,2]
[323018930,1713592248988,-1195.48,0.00015342,2]
[323018931,1713592248998,-151.0,0.00015342,2]
[323018932,1713592249007,-500.0,0.00015342,2]
[323018933,1713592249016,-500.0,0.00015342,2]
[323018934,1713592249026,-151.0,0.00015342,2]
[323018935,1713592249035,-151.0,0.00015342,2]
[323018936,1713592249045,-151.0,0.00015342,2]
[323018937,1713592249054,-151.0,0.00015342,2]
[323018938,1713592249064,-500.0,0.00015342,2]
[323018939,1713592249080,-151.0,0.00015342,2]
[323018940,1713592249094,-1059.71,0.00015342,2]
[323018941,1713592249104,-1276.76,0.00015342,2]
[323018942,1713592249116,-151.0,0.00015342,2]
[323018943,1713592249126,-159.994672,0.00015342,2]
[323018944,1713592249136,-1740.53,0.00015342,2]
[323018945,1713592249146,-902.0,0.00015342,2]
[323018946,1713592249156,-574.23,0.00015342,2]
[323018947,1713592249165,-500.0,0.00015342,2]
[323018948,1713592249175,-151.0,0.00015342,2]
[323018949,1713592249184,-2348.63,0.00015342,2]
[323018950,1713592249194,-156.125741,0.00015342,2]
[323018951,1713592249204,-500.0,0.00015342,2]
[323018952,1713592249213,-294.464797,0.00015342,2]
[323018953,1713592249223,-522.5,0.00015342,2]
[323018954,1713592249232,-294.464797,0.00015342,2]
[323018955,1713592249242,-294.464797,0.00015342,2]
[323018956,1713592249253,-294.464797,0.00015342,2]
[323018957,1713592249264,-500.0,0.00015342,2]
[323018958,1713592249274,-500.0,0.00015342,2]
[323018959,1713592249283,-294.464797,0.00015342,2]
[323018960,1713592249294,-294.464797,0.00015342,2]
[323018961,1713592249304,-500.0,0.00015342,2]
[323018962,1713592249314,-294.464797,0.00015342,2]
[323018963,1713592249324,-542.8,0.00015342,2]
[323018964,1713592249334,-294.464797,0.00015342,2]
[323018965,1713592249344,-1132.06,0.00015342,2]
[323018966,1713592249353,-662.17,0.00015342,2]
[323018967,1713592249365,-151.0,0.00015342,2]
[323018968,1713592249375,-151.0,0.00015342,2]
[323018969,1713592249384,-152.305985,0.00015342,2]
[323018970,1713592249394,-948.1,0.00015342,2]
[323018971,1713592249404,-601.84,0.00015342,2]
[323018972,1713592249413,-2475.230557,0.00015342,2]
[323018973,1713592249422,-1927.25,0.00015342,2]
[323018974,1713592249432,-844.189566,0.00015342,2]
[323018975,1713592249441,-913.69,0.00015342,2]
[323018976,1713592249451,-500.0,0.00015342,2]
[323018977,1713592249460,-2475.230557,0.00015342,2]
[323018978,1713592249470,-2475.230557,0.00015342,2]
[323018979,1713592249479,-844.189566,0.00015342,2]
[323018980,1713592249488,-2475.230557,0.00015342,2]
[323018981,1713592249497,-844.189566,0.00015342,2]
[323018982,1713592249506,-2475.230557,0.00015342,2]
[323018983,1713592249515,-844.189566,0.00015342,2]
[323018984,1713592249525,-151.0,0.00015342,2]
[323018985,1713592249534,-151.0,0.00015342,2]
[323018986,1713592249543,-151.0,0.00015342,2]
[323018987,1713592249553,-151.0,0.00015342,2]
[323018988,1713592249562,-157.902705,0.00015342,2]
[323018989,1713592249571,-151.0,0.00015342,2]
[323018990,1713592249580,-500.0,0.00015342,2]
[323018991,1713592249589,-500.0,0.00015342,2]
[323018992,1713592249598,-844.189566,0.00015342,2]
[323018993,1713592249607,-500.0,0.00015342,2]
[323018994,1713592249619,-844.189566,0.00015342,2]
[323018995,1713592249628,-844.189566,0.00015342,2]
[323018996,1713592249637,-844.189566,0.00015342,2]
[323018997,1713592249646,-539.01,0.00015342,2]
[323018998,1713592249656,-624.51,0.00015342,2]
[323018999,1713592249665,-1008.81,0.00015342,2]
[323019000,1713592249674,-2309.15,0.00015342,2]
[323019001,1713592249683,-500.0,0.00015342,2]
[323019002,1713592249692,-500.0,0.00015342,2]
[323019003,1713592249701,-500.0,0.00015342,2]
[323019004,1713592249710,-151.0,0.00015342,2]
[323019005,1713592249720,-1413.98,0.00015342,2]
[323019006,1713592249729,-151.0,0.00015342,2]
[323019007,1713592249738,-151.0,0.00015342,2]
[323019008,1713592249747,-500.0,0.00015342,2]
[323019009,1713592249756,-151.0,0.00015342,2]
[323019010,1713592249765,-5435.24,0.00015342,2]
[323019011,1713592249775,-3815.88,0.00015342,2]
[323019012,1713592249784,-1367.59,0.00015342,2]
[323019013,1713592249794,-151.0,0.00015342,2]
[323019014,1713592249803,-526.55,0.00015342,2]
[323019015,1713592249812,-151.0,0.00015342,2]
[323019016,1713592249821,-500.0,0.00015342,2]
[323019017,1713592249831,-500.0,0.00015342,2]
[323019018,1713592249840,-500.0,0.00015342,2]
[323019019,1713592249849,-151.0,0.00015342,2]
[323019020,1713592249858,-151.0,0.00015342,2]
[323019021,1713592249870,-151.0,0.00015342,2]
[323019022,1713592249879,-1292.66,0.00015342,2]
[323019023,1713592249889,-500.0,0.00015342,2]
[323019024,1713592249898,-151.0,0.00015342,2]
[323019025,1713592249907,-500.0,0.00015342,2]
[323019026,1713592249917,-500.0,0.00015342,2]
[323019027,1713592249927,-500.0,0.00015342,2]
[323019028,1713592249936,-151.0,0.00015342,2]
[323019029,1713592249946,-20694.86,0.00015342,2]
[323019030,1713592249956,-500.0,0.00015342,2]
[323019031,1713592249965,-500.0,0.00015342,2]
[323019032,1713592249975,-151.0,0.00015342,2]
[323019033,1713592249984,-500.0,0.00015342,2]
[323019034,1713592249993,-500.0,0.00015342,2]
[323019035,1713592250003,-1261.83,0.00015342,2]
[323019036,1713592250012,-813.07,0.00015342,2]
[323019037,1713592250022,-500.0,0.00015342,2]
[323019038,1713592250032,-772.36,0.00015342,2]
[323019039,1713592250042,-500.0,0.00015342,2]
[323019040,1713592250052,-1348.85,0.00015342,2]
[323019041,1713592250061,-620.291612,0.00015342,2]
[323019042,1713592250071,-22419.54,0.00015342,2]
[323019043,1713592250081,-620.291612,0.00015342,2]
[323019044,1713592250092,-620.291612,0.00015342,2]
[323019045,1713592250102,-500.0,0.00015342,2]
[323019046,1713592250114,-1534.31,0.00015342,2]
[323019047,1713592250124,-620.291612,0.00015342,2]
[323019048,1713592250133,-500.0,0.00015342,2]
[323019049,1713592250143,-528.47,0.00015342,2]
[323019050,1713592250153,-412.09763732,0.00015342,2]
[323019051,1713592250163,-1534.1,0.00015342,2]
[323019052,1713592250172,-620.291612,0.00015342,2]
[323019053,1713592250182,-620.291612,0.00015342,2]
[323019054,1713592250192,-1012.74,0.00015342,2]
[323019055,1713592250201,-620.291612,0.00015342,2]
[323019056,1713592250211,-620.291612,0.00015342,2]
[323019057,1713592250220,-500.0,0.00015342,2]
[323019058,1713592250229,-1832.0,0.00015342,2]
[323019059,1713592250239,-1760.49,0.00015342,2]
[323019060,1713592250248,-3076.99,0.00015342,2]
[323019061,1713592250261,-500.0,0.00015342,2]
[323019062,1713592250271,-500.0,0.00015342,2]
[323019063,1713592250280,-1698.88,0.00015342,2]
[323019064,1713592250290,-500.0,0.00015342,2]
[323019065,1713592250299,-151.0,0.00015342,2]
[323019066,1713592250311,-151.0,0.00015342,2]
[323019067,1713592250321,-612.24112044,0.00015342,2]
[323019068,1713592250330,-151.0,0.00015342,2]
[323019069,1713592250340,-879.94,0.00015342,2]
[323019070,1713592250350,-263.150817,0.00015342,2]
[323019071,1713592250360,-500.0,0.00015342,2]
[323019072,1713592250369,-151.0,0.00015342,2]
[323019073,1713592250378,-2043.72,0.00015342,2]
[323019074,1713592250388,-500.0,0.00015342,2]
[323019075,1713592250398,-151.0,0.00015342,2]
[323019076,1713592250407,-500.0,0.00015342,2]
[323019077,1713592250416,-151.0,0.00015342,2]
[323019078,1713592250426,-151.0,0.00015342,2]
[323019079,1713592250435,-500.0,0.00015342,2]
[323019080,1713592250444,-500.0,0.00015342,2]
[323019081,1713592250453,-2453.32,0.00015342,2]
[323019082,1713592250462,-500.0,0.00015342,2]
[323019083,1713592250471,-500.0,0.00015342,2]
[323019084,1713592250481,-830.12,0.00015342,2]
[323019085,1713592250490,-500.0,0.00015342,2]
[323019086,1713592250500,-1371.02,0.00015342,2]
[323019087,1713592250509,-500.0,0.00015342,2]